Cogmind - Beta 10.2 *** ADVENTURER MODE // 2022.02.17 @ 19:54:59 Player: woegarden Result: Destroyed by G-47 Trooper with Particle Gun Performance ------------- Evolutions (2) 1000 Regions Visited (4) 800 Robots Destroyed (32) 160 Value Destroyed (554) 554 Prototype IDs (2) 40 Alien Tech Used (0) 0 Bonus (0) 0 TOTAL SCORE: 2554 Bonus ------- None Cogmind --------- Core Integrity 0/550 Matter 190/300 Energy 100/100 System Corruption 0% Temperature Cool (9) Movement Core (50) Location -8/Materials Parts ------- > --- POWER (2) -------- (None) > --- PROPULSION (3) --- (None) > --- UTILITY (4) ------ Signal Interpreter > --- WEAPON (2) ------- (None) > --- INVENTORY (4) ---- Improved Ion Engine Deuterium Engine Structural Scanner Advanced Terrain Scanner Peak State ------------ > --- POWER ------------ Light Nuclear Core > --- PROPULSION ------- Flight Unit Flight Unit VTOL Module > --- UTILITY ---------- Medium Storage Unit Weight Redist. System Signal Interpreter Improved ECM Suite > --- WEAPON ----------- Heavy Assault Rifle > --- INVENTORY -------- Improved Ion Engine Structural Scanner Improved Sensor Array Advanced Terrain Scanner Advanced Terrain Scan Processor Transport Network Coupler Improved Trap Extractor Remote Datajack [Rating: 18] Favorites ----------- Power Ion Engine Engine Ion Engine Power Core Light Nuclear Core Propulsion Hover Unit Leg Aluminum Leg Hover Unit Hover Unit Flight Unit Flight Unit Utility Medium Storage Unit Device Weight Redist. System Storage Medium Storage Unit Processor Signal Interpreter Weapon EM Pulse Gun Energy Gun EM Pulse Gun Ballistic Gun Heavy Assault Rifle Special Weapon Remote Datajack Special Melee Weapon Datajack Build | -11 -10 -9 -9 -8 ------- Run | Scr Mat Mat Min Mat Slots Evolved 4 | . . 2 . 2 Power 1 | . . . . 1 Propulsion 1 | . . . . 1 Utility 2 | . . 2 . . Weapon . | . . . . . Parts Attached 49 | 5 7 14 8 15 Power 16 | 1 . 1 5 9 Engine 10 | 1 . . 3 6 Core 6 | . . 1 2 3 Reactor . | . . . . . Propulsion 10 | 2 2 3 2 1 Treads . | . . . . . Leg 2 | 2 . . . . Wheel . | . . . . . Hover 2 | . 2 . . . Flight 6 | . . 3 2 1 Utility 15 | 1 3 7 . 4 Device 10 | . 2 4 . 4 Storage 3 | 1 1 1 . . Processor 2 | . . 2 . . Hackware . | . . . . . Protection . | . . . . . Artifact . | . . . . . Weapon 8 | 1 2 3 1 1 Energy Gun 4 | 1 2 1 . . Energy Cannon . | . . . . . Ballistic Gun 1 | . . 1 . . Ballistic Cannon . | . . . . . Launcher . | . . . . . Special Weapon 2 | . . . 1 1 Impact Weapon . | . . . . . Slashing Weapon . | . . . . . Piercing Weapon . | . . . . . Special Melee Weapon 1 | . . 1 . . Unidentified Prototypes . | . . . . . Parts Lost 17 | . . 5 3 9 Power 2 | . . 1 . 1 Propulsion 7 | . . 2 2 3 Utility 4 | . . . 1 3 Weapon 4 | . . 2 . 2 Highest Loss Streak 9 | . . 3 2 9 Average Slot Usage (%) 89 | . 98 84 87 57 Engine 8 | . 14 3 4 1 Core 1 | . . 3 . 5 Leg 6 | . 14 . . . Hover 10 | . 13 17 . . Flight 6 | . . 1 21 16 Device 12 | . 13 12 11 11 Storage 16 | . 14 20 21 7 Processor 5 | . . 10 11 9 Energy Gun 14 | . 26 8 . . Ballistic Gun 3 | . . . 11 5 Special Weapon 1 | . . . 7 . Special Melee Weapon 1 | . . 6 . . Naked Turns . | . . . . . Heaviest Build 25 | 11 20 21 20 25 Greatest Support 26 | 20 26 18 15 19 Greatest Overweight (x) 2 | . 1 2 2 2 Average Overweight (x) . | . . . 1 . Largest Inventory Capacity 8 | 6 8 8 8 8 Average Capacity 7 | 5 7 8 8 7 Most Carried 8 | 4 8 8 8 8 Average Carried 6 | 1 5 5 7 7 Final Capacity 8 | 6 8 8 8 4 Final Carried 8 | 1 8 7 8 4 Class Distribution -------------------- 88% | Mutant 11% | Scavenger-Mutant Dominant Class ---------------- Mutant | -10/Materials Mutant | -9/Materials Mutant | -9/Mines Scavenger-Mutant | -8/Materials Resources | -11 -10 -9 -9 -8 ----------- Run | Scr Mat Mat Min Mat Matter Collected 565 | 227 78 120 140 . Remotely . | . . . . . Salvage Created 942 | . 502 219 221 . Parts 78 | . 34 21 23 . Haulers Intercepted 2 | . 2 . . . Recyclers Shooed . | . . . . . Parts Field Recycled . | . . . . . Retrieved Matter . | . . . . . Parts Self-Destructed . | . . . . . Prevented . | . . . . . Kills | -11 -10 -9 -9 -8 ------- Run | Scr Mat Mat Min Mat Combat Hostiles Destroyed 24 | . 10 5 9 . Guns 24 | . 10 5 9 . Classes Destroyed 7 | . 5 2 . . Worker 1 | . 1 . . . Builder 2 | . . 2 . . Hauler 2 | . 2 . . . Watcher 3 | . 3 . . . Swarmer 15 | . 6 3 6 . Grunt 7 | . 4 . 3 . Sentry 2 | . . 2 . . Best Kill Streak 10 | . 4 4 10 . Combat Bots Only 10 | . 3 4 10 . Max Kills in Single Turn 1 | . 1 1 1 . Gunslinging . | . . . . . Exploded . | . . . . . Melee . | . . . . . Uniques/NPCs Destroyed . | . . . . . Combat | -11 -10 -9 -9 -8 -------- Run | Scr Mat Mat Min Mat Damage Taken 2143 | . 279 555 343 966 Core 1001 | . 79 253 112 557 Absorbed by Shields . | . . . . . Core Remaining (%) 58 | 100 68 . 8 . Volleys Fired 77 | . 39 10 28 . Largest 1 | . 1 1 1 . Hottest 50 | . 50 45 23 . Shots Fired 77 | . 39 10 28 . Gun 77 | . 39 10 28 . Cannon . | . . . . . Launcher . | . . . . . Special . | . . . . . Kinetic 34 | . . 6 28 . Thermal 7 | . 7 . . . Explosive . | . . . . . Electromagnetic 36 | . 32 4 . . Robot Hit Streak 14 | . 11 9 14 . Robot Miss Streak 2 | . 2 1 2 . Penetration Max . | . . . . . Secondary Targets . | . . . . . Shots Hit Robots 68 | . 30 15 23 . Core Hits 42 | . 19 11 10 2 Critical Hits . | . . . . . Critical Kills . | . . . . . Critical Parts Destroyed . | . . . . . Melee Attacks 7 | . . 7 . . Impact . | . . . . . Slashing . | . . . . . Piercing . | . . . . . Sneak Attacks 4 | . . 4 . . Combat Hostiles . | . . . . . Follow-up Attacks . | . . . . . Damage Inflicted 1061 | . 555 149 346 11 Guns 967 | . 492 129 346 . Cannons . | . . . . . Explosions 20 | . 20 . . . Melee . | . . . . . Ramming 74 | . 43 20 . 11 Kinetic 435 | . . 89 346 . Thermal 94 | . 94 . . . Explosive . | . . . . . Electromagnetic 458 | . 418 40 . . Impact . | . . . . . Slashing . | . . . . . Piercing . | . . . . . Highest Corruption 2 | . 2 . . . Average Corruption 2 | . 2 . . . Corruption Purged . | . . . . . Effects 6 | . 6 . . . Message Errors 4 | . 4 . . . Heat Flow Errors 1 | . 1 . . . Data Loss (minor) 1 | . 1 . . . Overload Shots . | . . . . . Overflow Damage . | . . . . . Projectiles . | . . . . . Explosions . | . . . . . Melee . | . . . . . Knockbacks 1 | . 1 . . . Impact 1 | . 1 . . . Kinetic . | . . . . . Secondary . | . . . . . Self-Inflicted Damage 64 | . 50 9 . 5 Shots 1 | . 1 . . . Rammed 9 | . 2 4 . 3 Targets Rammed 10 | . 3 4 . 3 Kicked 1 | . 1 . . . Crushed . | . . . . . Highest Temperature 264 | . 264 10 . 31 Average Temperature 44 | . 56 4 . 11 Received Heat Transfer 948 | . 57 207 126 558 Siege Activations . | . . . . . Robots Corrupted 1 | . 1 . . . Combat Hostiles . | . . . . . Parts Fried 6 | . 6 . . . Impact Corruptions . | . . . . . Robots Melted . | . . . . . Combat Hostiles . | . . . . . Parts Melted . | . . . . . Heat Transferred 272 | . 272 . . . Parts Sabotaged . | . . . . . Parts Stolen . | . . . . . Parts Stripped . | . . . . . Power Chain Reactions 1 | . 1 . . . Missiles Intercepted . | . . . . . Alert | -11 -10 -9 -9 -8 ------- Run | Scr Mat Mat Min Mat Peak Influence 276 | . 219 185 276 113 Initial 61 | . . . 61 23 Average 94 | . 85 29 194 53 Maximum Alert Level 1 | . 1 . 1 . Low Security (%) 81 | 100 89 100 39 100 Level 1 18 | . 10 . 60 . Level 2 . | . . . . . Level 3 . | . . . . . Level 4 . | . . . . . Level 5 . | . . . . . High Security . | . . . . . Max Security . | . . . . . Squads Dispatched 5 | . 1 2 1 1 Investigation 2 | . 1 . 1 . Extermination . | . . . . . Reinforcement 3 | . . 2 . 1 Assault . | . . . . . Garrison . | . . . . . Intercept . | . . . . . Construction Impeded 1 | . . 1 . . Haulers Reinforced . | . . . . . Stealth | -11 -10 -9 -9 -8 --------- Run | Scr Mat Mat Min Mat Distress Signals 2 | . . . . 2 Communications Jammed . | . . . . . Distress Signals . | . . . . . Times Spotted 67 | . 17 11 10 29 Peak Tracking Total 22 | . 3 4 3 22 Tactical Retreats 7 | . 3 3 . 1 Traps | -11 -10 -9 -9 -8 ------- Run | Scr Mat Mat Min Mat Traps Triggered 2 | . 1 . . 1 Indirectly . | . . . . . Trap Hack Attempts . | . . . . . Triggered . | . . . . . Disarmed . | . . . . . Reprogrammed . | . . . . . Reused . | . . . . . Traps Extracted . | . . . . . Installed . | . . . . . Triggered 1 | . 1 . . . Machines | -11 -10 -9 -9 -8 ---------- Run | Scr Mat Mat Min Mat Machines Disabled . | . . . . . Max in Single Turn . | . . . . . Machines Sabotaged . | . . . . . Garrisons Compromised . | . . . . . Overloaded Fab Kills . | . . . . . Fab Network Shutdowns . | . . . . . Hacking | -11 -10 -9 -9 -8 --------- Run | Scr Mat Mat Min Mat Machines Accessed 3 | . 1 . 2 . Terminals 2 | . 1 . 1 . Fabricators . | . . . . . Repair Stations . | . . . . . Recycling Units . | . . . . . Scanalyzers . | . . . . . Garrison Access . | . . . . . Total Hacks 7 | . 3 . 4 . Successful 5 | . 2 . 3 . Failed 2 | . 1 . 1 . Catastrophic . | . . . . . Database Lockouts . | . . . . . Manual . | . . . . . Terminals 6 | . 3 . 3 . Fabricators . | . . . . . Repair Stations . | . . . . . Recycling Units . | . . . . . Scanalyzers . | . . . . . Garrison Access . | . . . . . Terminal Hacks 5 | . 2 . 3 . Prototype ID Bank 1 | . 1 . . . Open Door 1 | . . . 1 . Branch Access Points 1 | . 1 . . . Recall Investigation 1 | . . . 1 . Recall Assault 1 | . . . 1 . Fabricator Hacks . | . . . . . Repair Station Hacks . | . . . . . Recycling Unit Hacks . | . . . . . Scanalyzer . | . . . . . Garrison Access Hacks . | . . . . . Unauthorized Hacks . | . . . . . Terminals . | . . . . . Fabricators . | . . . . . Repair Stations . | . . . . . Recycling Units . | . . . . . Scanalyzers . | . . . . . Garrison Access . | . . . . . Data Cores Recovered . | . . . . . Used . | . . . . . Hacking Detections 2 | . 1 . 1 . Full Trace Events 1 | . . . 1 . Feedback Events . | . . . . . Feedback Blocked . | . . . . . Robot Schematics Acquired . | . . . . . Robots Built . | . . . . . Matter . | . . . . . Time . | . . . . . Total Robot Build Rating . | . . . . . Part Schematics Acquired . | . . . . . Parts Built . | . . . . . Matter . | . . . . . Time . | . . . . . Total Part Build Rating . | . . . . . Parts Repaired . | . . . . . Time . | . . . . . Parts Recycled . | . . . . . Recycled Matter . | . . . . . Retrieved Matter . | . . . . . Retrieved Components . | . . . . . Parts Scanalyzed . | . . . . . Part Schematics Acquired . | . . . . . Parts Damaged . | . . . . . Bothacking | -11 -10 -9 -9 -8 ------------ Run | Scr Mat Mat Min Mat Used RIF Installer . | . . . . . Robots Hacked 2 | . . 2 . . Non-combat 2 | . . 2 . . Combat . | . . . . . Robot Hacks Applied 3 | . . 3 . . parse_system 1 | . . 1 . . no_distress 1 | . . 1 . . check_alert 1 | . . 1 . . Relay Couplers Released . | . . . . . Robots Rewired . | . . . . . Allies Hacked . | . . . . . Hacks Repelled . | . . . . . Allies | -11 -10 -9 -9 -8 -------- Run | Scr Mat Mat Min Mat Total Allies . | . . . . . Largest Group . | . . . . . Highest-Rated Group . | . . . . . Highest-Rated Ally . | . . . . . Total Orders . | . . . . . Ally Attacks . | . . . . . Total Damage . | . . . . . Kills . | . . . . . Allies Corrupted . | . . . . . Allies Melted . | . . . . . Intel | -11 -10 -9 -9 -8 ------- Run | Scr Mat Mat Min Mat Robot Analysis Total . | . . . . . Derelict Logs Recovered . | . . . . . Drone Launches . | . . . . . Drone Recoveries . | . . . . . Exploration | -11 -10 -9 -9 -8 ------------- Run | Scr Mat Mat Min Mat Turns Passed 2591 | 61 1206 542 593 189 Spaces Moved 1963 | 53 950 451 269 240 Core 245 | 18 . 2 150 75 Treads . | . . . . . Legs 442 | 35 407 . . . Wheels . | . . . . . Hover 961 | . 543 418 . . Flight 315 | . . 31 119 165 Fastest Speed 34 | 50 56 37 37 34 Average Speed 96 | 96 109 93 95 48 Slowest Speed 180 | 120 120 180 150 150 Overloaded Moves . | . . . . . Propulsion Burnouts . | . . . . . Robots Hopped . | . . . . . Cave-ins Triggered . | . . . . . Exploration Rate (%) 43 | 4 97 32 53 31 Regions Visited 4 Branch Regions 1 Pre-discovered Areas . | . . . . . Known Exits Taken 2 | . . 1 1 . Unknown Exits Taken 2 | 1 1 . . . Scrap Searched . | . . . . . Spaces Dug . | . . . . . Terrain Destroyed 6 | . 6 . . . Melee . | . . . . . Projectile . | . . . . . AOE 6 | . 6 . . . Terrain Rammed . | . . . . . Walls Destroyed . | . . . . . Machines Disabled . | . . . . . Actions | -11 -10 -9 -9 -8 --------- Run | Scr Mat Mat Min Mat Total 2585 | 62 1080 552 578 313 Wait 417 | . 63 54 262 38 Move 1959 | 52 949 450 268 240 Hop . | . . . . . Pick Up 37 | 5 14 7 5 6 Fast Attach 5 | 1 . . 1 3 Attach 31 | 4 2 9 7 9 Detach 13 | . . 3 5 5 Swap 13 | . 5 5 . 3 Drop 16 | . 5 3 2 6 Fire 77 | . 39 10 28 . Melee 7 | . . 7 . . Ram 9 | . 2 4 . 3 Kick 1 | . 1 . . . Crush . | . . . . . Escape Stasis . | . . . . . Rewire . | . . . . . Trap . | . . . . . Miscellaneous . | . . . . . Route ------- -11/Scrapyard -10/Materials (discovered 4 exits: *Mat x3 / *Min) -9/Materials -9/Mines -8/Materials History --------- Turn | Location | Event 28 | -11/Scrapyard | Discovered new exit (range 15) 62 | -11/Scrapyard | Entered Materials 179 | -10/Materials | Discovered new exit (range 16) 212 | -10/Materials | Identified exit to Mines 307 | -10/Materials | Build established: Mutant 452 | -10/Materials | Discovered new exit (range 15) 1237 | -10/Materials | Discovered new exit (range 16) 1268 | -10/Materials | Entered another Materials area 1268 | -9/Materials | Evolved 2 slots: Utility x2 1641 | -9/Materials | Lost 3 parts (1p1n1w) 1765 | -9/Materials | Core integrity fell below 50% 1790 | -9/Materials | Discovered new exit (range 11) 1810 | -9/Materials | Identified exit to Mines 1810 | -9/Materials | Entered Mines 1824 | -9/Mines | Discovered new exit (range 17) 1873 | -9/Mines | Destroyed 10 combat bots 1932 | -9/Mines | Met a Derelict who couldn't figure out how to use a Trap Extractor 2372 | -9/Mines | Core integrity fell below 20% 2403 | -9/Mines | Identified exit to Materials 2403 | -9/Mines | Entered Materials 2403 | -8/Materials | Evolved 2 slots: Power x1, Propulsion x1 2563 | -8/Materials | Core integrity fell below 50% 2581 | -8/Materials | Core integrity fell below 20% 2592 | -8/Materials | Destroyed by G-47 Trooper with Particle Gun Last Messages --------------- 02531_ K-01 Serf cleans the Terminal. 02532_ U-05 Engineer builds a Door. 02534_ Lgt. Nuclear Core destroyed. 02535_ Slammed into R-06 Scavenger. 02536_ Destabilizing: System interference. 02536_ Weight Redist. System temporarily disabled. 02550_ Slammed into A-02 Transporter. 02553_ W-25 Informer distress signal alerts nearby ally. 02559_ Triggered Proton Bomb Trap. 02559_ A bubble of electromagnetic force engulfs the area. 02562_ U-05 Engineer lays Concrete. 02562_ ALERT: Hostiles spotted, dispatching reinforcements to Terminal M011. 02564_ Weight Redist. System destroyed. 02564_ U-05 Engineer lays Concrete. 02566_ Med. Storage Unit destroyed. 02575_ Atomic Centrifuge disabled. 02575_ K-01 Serf collects debris. [Achievement: Hunted] 02585_ A-02 Transporter destroyed. Map ----- +----------------------------------------------------+ | ???# """ """ # # """ # #???????? | | ???# """ """ # # """ # #???????? | | ???# """ """ ######### / """ # +???????? | | ???# #???????# # """ # #???????? | | ???###########???????# # """ # #???????? | | ???????????????????###![ # # #???????? | | ???????????????????# [%!# # #???????? | | ???????????????????# !]=########## #???????? | | ????????????######## ###T##### ???????? | | ????????????# # ???????? | | ????????????# # ####? ???????? | | ????????????#! """ + #????###???????? | | ????????????# """ # #??????????????? | | ????????????# """ ###### ### #????????? | | ????????????# #????#s T +????????? | | ????????????########????#g###### #????????? | | ????????????????????????# #???????##????????? | | ????????????????????????# #?????????????????? | | ????????????????????????# #?????????????????? | | ????????????????????????# #?????????????????? | | ????????????????????????# #?????????????????? | | ????????????????????????# #?????????????????? | | ????????????????????????# #?????????????????? | | ????????????????????????# #?????????????????? | | ????????????????????????# #?????????????????? | | ????????????????????????#@#?????????????????? | | ????????????????????????#u#?????????????????? | | ????????????????????????# #?????????????????? | | ????????????????????????# #?????????????????? | | ????????????????????????# #?????????????????? | | ????????????????????????# #?????????????????? | | ????????????????????????# #?????????????????? | | ????????????????????????# #?????????????????? | | ????????????????????????# #?????????????????? | | ????????????????????????? ??????????????????? | | ????????????????????????? ??????????????????? | | ????????????????????????? ??????????????????? | | ????????????????????????? ??????????????????? | | ????????????????????????? ??????????????????? | | ????????????????????????? ??????????????????? | | ????????????????????????? ??????????????????? | | ????????????????????????????????????????????? | | ????????????????????????????????????????????? | | ????????????????????????????????????????????? | | ????????????????????????????????????????????? | | ????????????????????????????????????????????? | | ????????????????????????????????????????????? | | ????????????????????????????????????????????? | | ????????????????????????????????????????????? | | ????????????????????????????????????????????? | +----------------------------------------------------+ Best States ------------- Heat Dissipation 31 Energy Generation 19 Energy Capacity 550 Matter Stores 300 Matter Capacity 300 Sight Range 16 Robot Scan Range 13 Terrain Scan Density 10 ECM Strength 2 Additional Mass Support 6 Resistance: KI 20 Resistance: TH 20 Resistance: EX 20 Resistance: EM 20 Resistance: I 20 Resistance: S 20 Resistance: P 20 Evasion (%) 63 Offensive Hacking 10 Item Schematics ----------------- None Robot Schematics ------------------ None Fabricated ------------ Nothing Alien Tech Used ----------------- None Achievements -------------- Hunted Power Corrupts Challenges ------------ None Game ------ Seed TargetingAerolevFilter Manual? 0 Play Time 00:38:44 Cumulative 7.1 hours Start 2022.02.17 @ 19:16:21 End 2022.02.17 @ 19:54:59 Sessions 1 Manual Loads 0 Difficulty Adventurer Special Mode None Game No. 12 Rogue 0 Adventurer 12 Explorer 0 Win Type - Total 0 Types 0/0/0/0/0/0/0/0/0 Lore% 14 Gallery% 10 Achievement% 9 Wizard Run 0 Options --------- ASCII 0 Keyboard 0 Movement Mouse Keybinds 0 Fullscreen 1 Font 16/Proggy Map View 76x50 Tactical HUD 1 Map Filters NONE Filters NONE Steam 1 RUN: 69a6001e-ed0b-4ed9-b5de-32528d5dcaac